fUSD/lending_fUSD_20240913
["ID","MTS","AMOUNT","RATE_DAILY","PERIOD"]
[337895545,1726199441266,-1647.25,0.00012975,2]
[337895547,1726199441278,-500.0,0.00012975,2]
[337895549,1726199441290,-603.56,0.00012975,2]
[337895551,1726199441299,-152.411176,0.00012975,2]
[337895553,1726199441308,-3381.92,0.00012975,2]
[337895555,1726199441317,-10996.34,0.00012975,2]
[337895557,1726199441327,-2157.94,0.00012975,2]
[337895559,1726199441336,-500.0,0.00012975,2]
[337895561,1726199441345,-500.0,0.00012975,2]
[337895563,1726199441354,-5496.08,0.00012975,2]
[337895564,1726199441364,-500.0,0.00012975,2]
[337895566,1726199441374,-1966.59,0.00012975,2]
[337895569,1726199441383,-1386.03,0.00012975,2]
[337895571,1726199441392,-500.0,0.00012975,2]
[337895573,1726199441402,-6172.07,0.00012975,2]
[337895575,1726199441413,-5336.18,0.00012975,2]
[337895577,1726199441422,-3751.92,0.00012975,2]
[337895579,1726199441431,-7144.34,0.00012975,2]
[337895581,1726199441440,-901.65,0.00012975,2]
[337895583,1726199441450,-6074.76,0.00012975,2]
[337895585,1726199441459,-7204.27,0.00012975,2]
[337895587,1726199441468,-283.472724,0.00012975,2]
[337895589,1726199441478,-1192.43,0.00012975,2]
[337895591,1726199441487,-685.72,0.00012975,2]
[337895593,1726199441497,-3609.22,0.00012975,2]
[337895595,1726199441506,-500.0,0.00012975,2]
[337895597,1726199441516,-5894.09,0.00012975,2]
[337895599,1726199441525,-1564.59,0.00012975,2]
[337895601,1726199441537,-500.0,0.00012975,2]
[337895602,1726199441546,-3577.19,0.00012975,2]
[337895604,1726199441556,-73321.54,0.00012975,2]
[337895606,1726199441565,-3827.18,0.00012975,2]
[337895608,1726199441574,-7285.77,0.00012975,2]
[337895610,1726199441583,-3715.54,0.00012975,2]
[337895612,1726199441592,-794.37,0.00012975,2]
[337895614,1726199441603,-2203.84,0.00012975,2]
[337895616,1726199441614,-969.11,0.00012975,2]
[337895618,1726199441623,-500.0,0.00012975,2]
[337895620,1726199441633,-5799.51,0.00012975,2]
[337895622,1726199441642,-8211.43,0.00012975,2]
[337895624,1726199441651,-1551.22,0.00012975,2]
[337895626,1726199441661,-366.2856462,0.00012975,2]
[337895628,1726199441671,-10653.67,0.00012975,2]
[337895630,1726199441680,-4815.81,0.00012975,2]
[337895632,1726199441689,-3046.52,0.00012975,2]
[337895634,1726199441698,-6999.92,0.00012975,2]
[337895636,1726199441708,-5522.0,0.00012975,2]
[337895637,1726199441717,-500.0,0.00012975,2]
[337895639,1726199441727,-1587.1,0.00012975,2]
[337895641,1726199441736,-3633.47,0.00012975,2]
[337895643,1726199441745,-1276.61,0.00012975,2]
[337895645,1726199441755,-1572.04,0.00012975,2]
[337895647,1726199441764,-500.0,0.00012975,2]
[337895649,1726199441774,-3655.1,0.00012975,2]
[337895651,1726199441784,-500.0,0.00012975,2]
[337895653,1726199441793,-11946.62,0.00012975,2]
[337895655,1726199441803,-5757.79,0.00012975,2]
[337895657,1726199441812,-500.0,0.00012975,2]
[337895659,1726199441821,-157.78084779,0.00012975,2]
[337895661,1726199441831,-5161.65,0.00012975,2]
[337895663,1726199441841,-48473.41,0.00012975,2]
[337895665,1726199441850,-3183.52,0.00012975,2]
[337895667,1726199441860,-2156.86,0.00012975,2]
[337895669,1726199441869,-2156.86,0.00012975,2]
[337895671,1726199441879,-2156.86,0.00012975,2]
[337895673,1726199441888,-3877.79,0.00012975,2]
[337895674,1726199441898,-2326.863878,0.00012975,2]
[337895676,1726199441908,-2326.863878,0.00012975,2]
[337895678,1726199441918,-2326.863878,0.00012975,2]
[337895680,1726199441927,-2326.863878,0.00012975,2]
[337895682,1726199441937,-2326.863878,0.00012975,2]
[337895684,1726199441947,-2326.863878,0.00012975,2]
[337895686,1726199441959,-2326.863878,0.00012975,2]
[337895688,1726199441968,-500.0,0.00012975,2]
[337895690,1726199441977,-2326.863878,0.00012975,2]
[337895692,1726199441987,-2326.863878,0.00012975,2]
[337895693,1726199441997,-2326.863878,0.00012975,2]
[337895695,1726199442007,-8224.79,0.00012975,2]
[337895697,1726199442016,-2326.863878,0.00012975,2]
[337895699,1726199442027,-2326.863888,0.00012975,2]
[337895701,1726199442038,-3969.45,0.00012975,2]
[337895703,1726199442047,-8855.29,0.00012975,2]
[337895705,1726199442056,-201.2035715,0.00012975,2]
[337895707,1726199442065,-4650.43,0.00012975,2]
[337895709,1726199442074,-681.6,0.00012975,2]
[337895711,1726199442084,-4889.47,0.00012975,2]
[337895713,1726199442096,-175.88125909,0.00012975,2]
[337895715,1726199442105,-593.0,0.00012976,2]
[337895717,1726199442115,-1000.0,0.00012976,2]
[337895719,1726199442125,-1000.0,0.00012976,2]
[337895721,1726199442134,-1000.0,0.00012976,2]
[337895723,1726199442143,-1000.0,0.00012976,2]
[337895725,1726199442152,-1000.0,0.00012976,2]
[337895727,1726199442161,-1000.0,0.00012976,2]
[337895729,1726199442171,-1000.0,0.00012976,2]
[337895731,1726199442180,-1000.0,0.00012976,2]
[337895733,1726199442189,-1000.0,0.00012976,2]
[337895735,1726199442198,-1000.0,0.00012976,2]
[337895737,1726199442207,-1000.0,0.00012976,2]
[337895739,1726199442216,-1000.0,0.00012976,2]
[337895740,1726199442226,-1000.0,0.00012976,2]
[337895742,1726199442235,-1000.0,0.00012976,2]
[337895744,1726199442244,-1000.0,0.00012976,2]
[337895746,1726199442253,-1000.0,0.00012976,2]
[337895748,1726199442262,-1058.74,0.00012976,2]
[337895750,1726199442271,-500.0,0.00012976,2]
[337895752,1726199442280,-500.0,0.00012976,2]
[337895754,1726199442291,-577.80297613,0.00012976,2]
[337895756,1726199442299,-850.96,0.00012976,2]
[337895758,1726199442309,-500.0,0.00012976,2]
[337895759,1726199442320,-500.0,0.00012976,2]
[337895760,1726199442329,-500.0,0.00012976,2]
[337895761,1726199442341,-500.0,0.00012976,2]
[337895762,1726199442351,-500.0,0.00012976,2]
[337895763,1726199442361,-500.0,0.00012976,2]
[337895764,1726199442372,-1960.42,0.00012976,2]
[337895765,1726199442383,-524.56,0.00012976,2]
[337895766,1726199442393,-500.0,0.00012976,2]
[337895767,1726199442404,-2904.28,0.00012976,2]
[337895794,1726199442717,-500.0,0.00012976,2]
[337895796,1726199442727,-1247.27,0.00012976,2]
[337895798,1726199442736,-834.18,0.00012976,2]
[337895800,1726199442745,-588.89,0.00012976,2]
[337895802,1726199442755,-500.0,0.00012976,2]
[337895804,1726199442765,-812.31,0.00012976,2]
[337895807,1726199442775,-3222.36,0.00012976,2]
[337895809,1726199442786,-500.0,0.00012976,2]
[337895811,1726199442796,-736.96,0.00012976,2]
[337895813,1726199442805,-500.0,0.00012976,2]
[337895815,1726199442815,-500.0,0.00012976,2]
[337895817,1726199442824,-500.0,0.00012976,2]
[337895820,1726199442833,-500.0,0.00012976,2]
[337895822,1726199442844,-2131.7,0.00012976,2]
[337895823,1726199442853,-652.43,0.00012976,2]
[337895825,1726199442862,-500.0,0.00012976,2]
[337895827,1726199442871,-500.0,0.00012976,2]
[337895829,1726199442881,-194.86566306,0.00012976,2]
[337895831,1726199442890,-740.28,0.00012976,2]
[337895833,1726199442900,-500.0,0.00012976,2]
[337895835,1726199442910,-1014.71,0.00012976,2]
[337895837,1726199442919,-500.0,0.00012976,2]
[337895839,1726199442930,-500.0,0.00012976,2]
[337895841,1726199442939,-1029.24,0.00012976,2]
[337895843,1726199442951,-507.93,0.00012976,2]
[337895845,1726199442961,-500.0,0.00012976,2]
[337895846,1726199442970,-570.31,0.00012976,2]
[337895848,1726199442980,-3155.59,0.00012976,2]
[337895850,1726199442989,-2152.47,0.00012976,2]
[337895852,1726199442998,-634.36,0.00012976,2]
[337895854,1726199443007,-773.89,0.00012976,2]
[337895856,1726199443017,-500.0,0.00012976,2]
[337895858,1726199443027,-756.22,0.00012976,2]
[337895860,1726199443037,-193.614887,0.00012976,2]
[337895862,1726199443046,-500.0,0.00012976,2]
[337895864,1726199443056,-706.67,0.00012976,2]
[337895866,1726199443065,-151.0,0.00012976,2]
[337895868,1726199443074,-155.354079,0.00012976,2]
[337895870,1726199443083,-514.41,0.00012976,2]
[337895872,1726199443092,-2075.83,0.00012976,2]
[337895874,1726199443101,-500.0,0.00012976,2]
[337895876,1726199443111,-2143.13,0.00012976,2]
[337895878,1726199443120,-500.0,0.00012976,2]
[337895880,1726199443129,-576.95967581,0.00012976,2]
[337895882,1726199443138,-1222.37,0.00012976,2]
[337895884,1726199443147,-500.0,0.00012976,2]
[337895886,1726199443156,-1440.75,0.00012976,2]
[337895888,1726199443166,-1844.81,0.00012976,2]
[337895890,1726199443175,-151.0,0.00012976,2]
[337895892,1726199443184,-151.0,0.00012976,2]
[337895894,1726199443193,-157.946537,0.00012976,2]
[337895896,1726199443203,-604.31,0.00012976,2]
[337895898,1726199443212,-2938.22,0.00012976,2]
[337895899,1726199443221,-3944.85,0.00012976,2]
[337895901,1726199443230,-151.0,0.00012976,2]
[337895903,1726199443240,-151.0,0.00012976,2]
[337895905,1726199443249,-151.0,0.00012976,2]
[337895907,1726199443258,-151.0,0.00012976,2]
[337895909,1726199443267,-151.0,0.00012976,2]
[337895911,1726199443276,-151.0,0.00012976,2]
[337895912,1726199443286,-151.0,0.00012976,2]
[337895914,1726199443295,-151.0,0.00012976,2]
[337895916,1726199443306,-151.0,0.00012976,2]
[337895919,1726199443317,-151.0,0.00012976,2]
[337895920,1726199443328,-5183.99,0.00012976,2]
[337895922,1726199443337,-188.29569,0.00012976,2]
[337895924,1726199443347,-5103.19,0.00012976,2]
[337895926,1726199443360,-500.0,0.00012976,2]
[337895930,1726199443370,-843.61,0.00012976,2]
[337895931,1726199443386,-1826.76,0.00012976,2]
[337895933,1726199443396,-3769.81,0.00012976,2]
[337895935,1726199443406,-213.219985,0.00012976,2]
[337895937,1726199443415,-7250.16,0.00012976,2]
[337895939,1726199443424,-5509.98,0.00012976,2]
[337895941,1726199443433,-2691.47,0.00012976,2]
[337895943,1726199443443,-500.0,0.00012976,2]
[337895945,1726199443452,-500.0,0.00012976,2]
[337895947,1726199443462,-500.0,0.00012976,2]
[337895948,1726199443471,-3416.14,0.00012976,2]
[337895950,1726199443480,-3637.13,0.00012976,2]
[337895952,1726199443490,-500.0,0.00012976,2]
[337895954,1726199443499,-3541.35,0.00012976,2]
[337895956,1726199443508,-500.0,0.00012976,2]
[337895958,1726199443517,-500.0,0.00012976,2]
[337895960,1726199443527,-2371.97,0.00012976,2]
[337895962,1726199443536,-3546.16,0.00012976,2]
[337895964,1726199443545,-3526.0,0.00012976,2]
[337895966,1726199443554,-1034.73,0.00012976,2]
[337895968,1726199443563,-1034.73,0.00012976,2]
[337895970,1726199443572,-2619.03,0.00012976,2]
[337895972,1726199443581,-2566.59,0.00012976,2]
[337895974,1726199443590,-500.0,0.00012976,2]
[337895976,1726199443599,-1569.55,0.00012976,2]
[337895978,1726199443609,-681.36,0.00012976,2]
[337895980,1726199443618,-514.73,0.00012976,2]
[337895982,1726199443627,-2854.98,0.00012976,2]
[337895983,1726199443636,-6727.82,0.00012976,2]
[337895985,1726199443646,-618.96704858,0.00012976,2]
[337896057,1726199444351,-7162.32,0.00012973,2]
[337896059,1726199444361,-536.66295142,0.00012976,2]
[337896061,1726199444371,-500.0,0.00012976,2]
[337896063,1726199444380,-2573.81,0.00012976,2]
[337896065,1726199444389,-4684.38,0.00012976,2]
[337896067,1726199444397,-213.819669,0.00012976,2]
[337896069,1726199444407,-213.819669,0.00012976,2]
[337896070,1726199444416,-213.819669,0.00012976,2]
[337896072,1726199444425,-213.81967,0.00012976,2]
[337896074,1726199444435,-1610.09,0.00012976,2]
[337896076,1726199444445,-5872.64,0.00012976,2]
[337896078,1726199444454,-2204.19,0.00012976,2]
[337896080,1726199444464,-3892.67,0.00012976,2]
[337896082,1726199444473,-3555.09,0.00012976,2]
[337896084,1726199444482,-2853.92,0.00012976,2]
[337896086,1726199444492,-500.0,0.00012976,2]
[337896088,1726199444502,-1469.09,0.00012976,2]
[337896090,1726199444511,-673.26,0.00012976,2]
[337896092,1726199444521,-500.0,0.00012976,2]
[337896094,1726199444530,-256.67255917,0.00012976,2]
[337896096,1726199444540,-908.0,0.00012976,2]
[337896098,1726199444549,-286.1691326,0.00012976,2]
[337896100,1726199444558,-500.0,0.00012976,2]
[337896102,1726199444568,-502.42738712,0.00012976,2]
[337896104,1726199444577,-1382.0,0.00012976,2]
[337896106,1726199444586,-1910.0,0.00012976,2]
[337896108,1726199444595,-500.0,0.00012976,2]
[337896110,1726199444605,-2972.1,0.00012976,2]
[337896111,1726199444614,-3265.64,0.00012976,2]
[337896113,1726199444623,-500.0,0.00012976,2]
[337896115,1726199444632,-500.0,0.00012976,2]
[337896117,1726199444642,-1669.57,0.00012976,2]
[337896119,1726199444651,-1465.91,0.00012976,2]
[337896121,1726199444660,-510.06337951,0.00012976,2]
[337896123,1726199444669,-5160.56,0.00012976,2]
[337896125,1726199444679,-500.0,0.00012976,2]
[337896127,1726199444688,-500.0,0.00012976,2]
[337896128,1726199444697,-512.87,0.00012976,2]
[337896130,1726199444707,-748.19,0.00012976,2]
[337896132,1726199444716,-2988.05,0.00012976,2]
[337896134,1726199444725,-1495.11,0.00012976,2]
[337896136,1726199444734,-1434.95,0.00012976,2]
[337896138,1726199444743,-1150.84,0.00012976,2]
[337896140,1726199444753,-2796.46,0.00012976,2]
[337896142,1726199444762,-567.08,0.00012976,2]
[337896144,1726199444772,-18763.39,0.00012976,2]
[337896146,1726199444781,-500.0,0.00012976,2]
[337896147,1726199444791,-500.0,0.00012976,2]
[337896149,1726199444800,-3728.79,0.00012976,2]
[337896151,1726199444810,-3500.77,0.00012976,2]
[337896153,1726199444820,-500.0,0.00012976,2]
[337896155,1726199444829,-5374.22,0.00012976,2]
[337896157,1726199444838,-513.96412304,0.00012976,2]
[337896159,1726199444848,-500.0,0.00012976,2]
[337896161,1726199444857,-500.0,0.00012976,2]
[337896170,1726199444944,-1563.96,0.00012976,2]
[337896172,1726199444956,-500.0,0.00012976,2]
[337896174,1726199444965,-500.0,0.00012976,2]
[337896176,1726199444974,-3979.76,0.00012976,2]
[337896178,1726199444984,-1043.19,0.00012976,2]
[337896180,1726199444994,-3470.24,0.00012976,2]
[337896182,1726199445003,-554.41,0.00012976,2]
[337896184,1726199445012,-500.0,0.00012976,2]
[337896186,1726199445022,-500.0,0.00012976,2]
[337896188,1726199445031,-1529.69,0.00012976,2]
[337896189,1726199445040,-1612.2,0.00012976,2]
[337896191,1726199445049,-500.0,0.00012976,2]
[337896193,1726199445060,-5577.56,0.00012976,2]
[337896195,1726199445070,-1344.82,0.00012976,2]
[337896197,1726199445079,-2960.07,0.00012976,2]
[337896200,1726199445088,-4007.37,0.00012976,2]
[337896202,1726199445098,-1186.22,0.00012976,2]
[337896204,1726199445107,-844.17,0.00012976,2]
[337896205,1726199445117,-2702.42,0.00012976,2]
[337896207,1726199445127,-3067.59,0.00012976,2]
[337896210,1726199445136,-500.0,0.00012976,2]
[337896211,1726199445146,-1134.48,0.00012976,2]
[337896213,1726199445156,-500.0,0.00012976,2]
[337896215,1726199445166,-3495.31,0.00012976,2]
[337896217,1726199445176,-1072.76,0.00012976,2]
[337896219,1726199445185,-599.32,0.00012976,2]
[337896221,1726199445195,-500.0,0.00012976,2]
[337896223,1726199445204,-3412.35,0.00012976,2]
[337896225,1726199445214,-2721.45,0.00012976,2]
[337896227,1726199445223,-500.25487936,0.00012976,2]
[337896229,1726199445233,-658.86,0.00012976,2]
[337896231,1726199445242,-500.0,0.00012976,2]
[337896232,1726199445252,-1145.81,0.00012976,2]
[337896234,1726199445262,-598.83,0.00012976,2]
[337896236,1726199445272,-3506.77,0.00012976,2]
[337896238,1726199445282,-5850.23,0.00012976,2]
[337896241,1726199445296,-1205.6,0.00012976,2]
[337896243,1726199445306,-500.0,0.00012976,2]
[337896245,1726199445316,-500.0,0.00012976,2]
[337896247,1726199445325,-3350.1,0.00012976,2]
[337896249,1726199445335,-2156.86,0.00012976,2]
[337896250,1726199445345,-2109.39,0.00012976,2]
[337896252,1726199445355,-2518.13,0.00012976,2]
[337896254,1726199445366,-500.0,0.00012976,2]
[337896256,1726199445378,-715.74,0.00012976,2]
[337896258,1726199445388,-500.0,0.00012976,2]
[337896260,1726199445399,-1957.9,0.00012976,2]
[337896262,1726199445408,-539.97816284,0.00012976,2]
[337896264,1726199445418,-3819.77,0.00012977,2]
[337896266,1726199445427,-151.0,0.00012977,2]
[337896268,1726199445437,-151.0,0.00012977,2]
[337896270,1726199445447,-212.398764,0.00012977,2]
[337896272,1726199445456,-2000.0,0.00012977,2]
[337896274,1726199445466,-200.0,0.00012977,2]
[337896276,1726199445475,-500.0,0.00012977,2]
[337896278,1726199445485,-500.0,0.00012977,2]
[337896279,1726199445494,-500.0,0.00012977,2]
[337896281,1726199445504,-1034.73,0.00012977,2]
[337896283,1726199445514,-1034.73,0.00012977,2]
[337896285,1726199445524,-470.42018,0.00012977,2]
[337896287,1726199445534,-470.42018,0.00012977,2]
[337896289,1726199445545,-1495.11,0.00012977,2]
[337896291,1726199445554,-554.41,0.00012977,2]
[337896293,1726199445564,-554.41,0.00012977,2]
[337896295,1726199445574,-554.41,0.00012977,2]
[337896297,1726199445584,-2156.86,0.00012977,2]
[337896299,1726199445593,-500.0,0.00012978,2]
[337896301,1726199445603,-655.11,0.00012978,2]
[337896303,1726199445612,-500.0,0.00012978,2]
[337896305,1726199445622,-500.0,0.00012978,2]
[337896307,1726199445633,-444.39849263,0.00012978,2]
[337896309,1726199445643,-870.35,0.00012978,2]
[337896311,1726199445652,-555.18,0.00012978,2]
[337896313,1726199445661,-875.91,0.00012978,2]
[337896315,1726199445671,-500.0,0.00012978,2]
[337896317,1726199445681,-500.0,0.00012978,2]
[337896319,1726199445691,-847.01,0.00012978,2]
[337896321,1726199445701,-500.0,0.00012978,2]
[337896322,1726199445710,-1278.54,0.00012978,2]
[337896324,1726199445722,-500.0,0.00012978,2]
[337896326,1726199445732,-500.0,0.00012978,2]
[337896328,1726199445742,-500.0,0.00012978,2]
[337896330,1726199445752,-1952.89,0.00012978,2]
[337896332,1726199445763,-1101.43,0.00012978,2]
[337896334,1726199445772,-4482.68,0.00012978,2]
[337896336,1726199445782,-835.24,0.00012978,2]
[337896338,1726199445793,-2328.96,0.00012978,2]
[337896341,1726199445803,-3379.36,0.00012978,2]
[337896343,1726199445812,-500.0,0.00012978,2]
[337896345,1726199445822,-3070.11,0.00012978,2]
[337896346,1726199445831,-500.0,0.00012978,2]
[337896348,1726199445842,-3016.64,0.00012978,2]
[337896350,1726199445852,-2813.74,0.00012978,2]
[337896353,1726199445862,-4187.65,0.00012978,2]
[337896356,1726199445872,-2514.09,0.00012978,2]
[337896358,1726199445883,-1263.39,0.00012978,2]
[337896360,1726199445892,-500.0,0.00012978,2]
[337896362,1726199445901,-4314.7,0.00012978,2]
[337896364,1726199445911,-4939.56,0.00012978,2]
[337896367,1726199445921,-6148.68,0.00012978,2]
[337896370,1726199445931,-1034.73,0.00012978,2]
[337896372,1726199445940,-1034.73,0.00012978,2]
[337896373,1726199445951,-4132.3,0.00012978,2]
[337896374,1726199445961,-500.0,0.00012978,2]
[337896375,1726199445971,-4896.68,0.00012978,2]
[337896376,1726199445981,-511.52,0.00012978,2]
[337896377,1726199445990,-500.0,0.00012978,2]
[337896378,1726199446001,-4314.53,0.00012978,2]
[337896379,1726199446011,-5340.32,0.00012978,2]
[337896380,1726199446019,-500.0,0.00012978,2]
[337896381,1726199446029,-897.3,0.00012978,2]
[337896382,1726199446040,-1736.5,0.00012978,2]
[337896383,1726199446049,-2856.49,0.00012978,2]
[337896384,1726199446059,-500.0,0.00012978,2]
[337896385,1726199446068,-6054.24,0.00012978,2]
[337896386,1726199446077,-1495.11,0.00012978,2]
[337896387,1726199446087,-554.41,0.00012978,2]
[337896388,1726199446096,-2156.86,0.00012978,2]
[337896390,1726199446106,-500.0,0.00012979,2]
[337896392,1726199446115,-1495.11,0.00012979,2]
[337896394,1726199446125,-554.41,0.00012979,2]
[337896396,1726199446137,-2156.86,0.00012979,2]
[337896398,1726199446147,-201308.5418125,0.0001298,2]
[337896400,1726199446158,-9095.8279535,0.0001298,2]
[337896402,1726199446168,-14165.8389067,0.0001298,2]
[337896404,1726199446177,-760.6016506,0.0001298,2]
[337896406,1726199446187,-26875.58,0.0001298,2]
[337896408,1726199446196,-4615.9386666,0.0001298,2]
[337896410,1726199446205,-645.9591078,0.0001298,2]
[337896412,1726199446215,-3786.8539661,0.0001298,2]
[337896414,1726199446225,-24431.0953333,0.0001298,2]
[337896416,1726199446234,-1034.73,0.00012982,2]
[337896418,1726199446244,-554.41,0.00012982,2]
[337896420,1726199446253,-189.98218467,0.00012985,2]
[337896422,1726199446263,-178.85096946,0.00012985,2]
[337896424,1726199446272,-500.0,0.00012985,2]
[337896426,1726199446282,-1034.73,0.00012985,2]
[337896428,1726199446294,-1495.11,0.00012985,2]
[337896430,1726199446302,-554.41,0.00012985,2]
[337896432,1726199446311,-2156.86,0.00012985,2]
[337896434,1726199446321,-657.94420807,0.00012987,3]
[337896437,1726199446347,-500.0,0.00012989,2]
[337896439,1726199446356,-1034.73,0.00012989,2]
[337896440,1726199446366,-1495.11,0.00012989,2]
[337896442,1726199446376,-554.41,0.00012989,2]
[337896444,1726199446386,-2156.86,0.00012989,2]
[337896446,1726199446395,-20170.17897133,0.0001299,2]
[337896448,1726199446405,-250000.0,0.0001299,2]
[337896450,1726199446415,-500.0,0.0001299,2]
[337896452,1726199446424,-1034.73,0.0001299,2]
[337896454,1726199446434,-1495.11,0.0001299,2]
[337896456,1726199446445,-554.41,0.0001299,2]
[337896458,1726199446454,-2156.86,0.0001299,2]
[337896460,1726199446465,-191.8705803,0.0001299,2]
[337896462,1726199446475,-10687.9901324,0.00012991,2]
[337896464,1726199446484,-12280.1523113,0.00012991,2]
[337896466,1726199446493,-16645.471663,0.00012991,2]
[337896468,1726199446503,-19125.1044193,0.00012991,2]
[337896469,1726199446512,-889.5054384,0.00012991,2]
[337896471,1726199446523,-1018.4092261,0.00012991,2]
[337896474,1726199446532,-31430.348,0.00012991,2]
[337896475,1726199446545,-35985.1159999,0.00012991,2]
[337896478,1726199446555,-5398.2298666,0.00012991,2]
[337896479,1726199446564,-6180.5210667,0.00012991,2]
[337896481,1726199446575,-755.4337266,0.00012991,2]
[337896483,1726199446585,-864.9083453,0.00012991,2]
[337896485,1726199446594,-4536.977192,0.00012991,2]
[337896487,1726199446604,-5287.1004178,0.00012991,2]
[337896489,1726199446614,-29367.3238666,0.00012991,2]
[337896491,1726199446624,-34303.5523999,0.00012991,2]
[337896493,1726199446634,-1547.0,0.00012996,2]
[337896495,1726199446644,-1262.83,0.00012996,2]
[337896497,1726199446654,-448.0,0.00012996,2]
[337896499,1726199446663,-624.0,0.00012996,2]
[337896501,1726199446673,-169.636,0.00012996,2]
[337896503,1726199446683,-937.09,0.00012996,2]
[337896505,1726199446694,-810.0,0.00012996,2]
[337896507,1726199446704,-678.845,0.00012996,2]
[337896509,1726199446714,-555.965,0.00012996,2]
[337896511,1726199446723,-1912.719,0.00012996,2]
[337896513,1726199446733,-249.696,0.00012996,2]
[337896515,1726199446742,-3452.342,0.00012996,2]
[337896517,1726199446752,-1919.0,0.00012996,2]
[337896519,1726199446762,-806.0,0.00012996,2]
[337896521,1726199446772,-1263.227,0.00012996,2]
[337896523,1726199446781,-150.0,0.00012996,2]
[337896525,1726199446791,-5862.0,0.00012996,2]
[337896527,1726199446800,-250.0,0.00012996,2]
[337896529,1726199446811,-150.0,0.00012996,2]
[337896531,1726199446820,-1146.0,0.00012996,2]
[337896533,1726199446830,-9312.0,0.00012996,2]
[337896535,1726199446840,-219.0,0.00012996,2]
[337896537,1726199446850,-2000.0,0.00012997,2]
[337896539,1726199446860,-1034.73,0.00012998,2]
[337896540,1726199446869,-554.41,0.00012998,2]
[337896543,1726199446879,-419.2248,0.00012999,2]
[337896545,1726199446889,-500.0,0.00012999,2]
[337896546,1726199446897,-500.0,0.00012999,2]
[337896548,1726199446907,-500.0,0.00012999,2]
[337896550,1726199446916,-500.0,0.00012999,2]
[337896552,1726199446927,-1034.73,0.00012999,2]
[337896554,1726199446936,-1034.73,0.00012999,2]
[337896555,1726199446945,-1034.73,0.00012999,2]
[337896557,1726199446958,-1034.73,0.00012999,2]
[337896559,1726199446967,-1034.73,0.00012999,2]
[337896561,1726199446977,-1034.73,0.00012999,2]
[337896563,1726199446987,-1034.73,0.00012999,2]
[337896565,1726199446998,-1034.73,0.00012999,2]
[337896567,1726199447008,-1034.73,0.00012999,2]
[337896569,1726199447018,-1034.73,0.00012999,2]
[337896571,1726199447028,-1034.73,0.00012999,2]
[337896573,1726199447039,-1034.73,0.00012999,2]
[337896575,1726199447048,-1034.96839575,0.00012999,2]
[337896577,1726199447058,-1495.11,0.00012999,2]
[337896579,1726199447067,-1495.11,0.00012999,2]
[337896580,1726199447076,-1495.11,0.00012999,2]
[337896583,1726199447087,-1495.11,0.00012999,2]
[337896584,1726199447097,-1495.11,0.00012999,2]
[337896586,1726199447106,-1495.11,0.00012999,2]
[337896588,1726199447115,-1495.11,0.00012999,2]
[337896590,1726199447125,-1495.11,0.00012999,2]
[337896592,1726199447134,-1495.11,0.00012999,2]
[337896594,1726199447144,-1495.11,0.00012999,2]
[337896596,1726199447153,-1495.11,0.00012999,2]
[337896598,1726199447162,-1495.11,0.00012999,2]
[337896600,1726199447171,-1495.11,0.00012999,2]
[337896602,1726199447181,-1495.25363975,0.00012999,2]
[337896604,1726199447190,-554.41,0.00012999,2]